[Event "Summer Prague Open-A 2022"]
[Site "Prague"]
[Date "2022.08.07"]
[Round "3.19"]
[White "Lalic, Bogdan"]
[Black "Kozak, Milos"]
[Result "1-0"]
[ECO "D41"]
[WhiteElo "2412"]
[BlackElo "2101"]
[Annotator "TA"]
[PlyCount "97"]
[EventDate "2022.08.05"]
[EventType "swiss"]
[EventCountry "CZE"]
[SourceTitle "playchess.com"]
[Source "ChessBase"]
[SourceQuality "1"]
[TimeControl "40/5400+30:1800+30"]

{[%evp 14,97,18,9,12,12,9,9,14,10,17,9,39,18,22,32,21,24,44,44,39,37,56,35,39,36,41,33,25,31,56,19,20,20,25,22,62,55,47,25,41,43,90,98,442,431,420,414,387,385,721,411,697,403,348,162,171,170,168,154,161,164,216,216,207,205,264,264,258,243,237,251,1762,1759,1563,1564,12573,12247,12796,10705,6597,6514,5720,5514,1502,1364]} 1. Nf3 {[%emt 0:02:22]} Nf6 {[%emt 0:00:21]} 2. c4 {[%emt 0:00:09]} e6 {[%emt 0:00:21]} 3. Nc3 {[%emt 0:00:09]} d5 {[%emt 0:00:23]} 4. d4 {[%emt 0:00:09]} c5 {[%emt 0:01:23]} 5. cxd5 {[%emt 0:00:16]} Nxd5 {[%emt 0:00:06]} 6. g3 {[%emt 0:02:44]} Nxc3 {[%emt 0:04:29]} 7. bxc3 {[%emt 0:00:06]} cxd4 {[%emt 0:00:10]} 8. cxd4 {[%emt 0:00:06]} Bb4+ {[%emt 0:00:13] D41: Queen's Gambit Declined: Semi-Tarrasch with 5 cxd5.} 9. Bd2 {[%emt 0:00:06]} Bxd2+ {[%emt 0:01:17]} 10. Qxd2 {[%emt 0:00:09]} b6 {[%emt 0:00:46] The position is equal.} 11. Bg2 {[%emt 0:00:10]} Bb7 {[%emt 0:00:07]} 12. O-O {[%emt 0:00:11]} Nd7 {[%emt 0:02:59]} 13. a4 {[%emt 0:00:42]} a5 {[%emt 0:03:51]} 14. Qb2 {[%emt 0:05:17]} O-O {[%emt 0:04:19]} 15. Rfc1 {[%emt 0:08:58] [#]} Be4 $146 {[%emt 0:12:33]} ({Predecessor:} 15... Rc8 16. Rxc8 Qxc8 17. Rc1 Qb8 18. Qb5 Rd8 19. Nd2 h6 20. e3 Rc8 21. Rxc8+ Qxc8 22. Bxb7 Qxb7 {½-½ (31) Juhasz,K (2438)-Korpa,B (2560) Austria 2019}) 16. Ne1 {[%emt 0:07:56][%cal Bf3e1,Be1g2,Bg2e3,Be3d5,Bd5f4][%mdl 32]} Bxg2 {[%emt 0:01:14]} 17. Nxg2 {[%emt 0:00:13]} Rc8 {[%emt 0:08:35]} 18. Ne3 {[%emt 0:02:46]} Qe7 {[%emt 0:22:48]} 19. Qb5 {[%emt 0:20:51]} Qd6 {[%emt 0:05:24]} 20. d5 {[%emt 0:00:37]} exd5 {[%emt 0:07:21]} 21. Nxd5 {[%emt 0:05:58]} Kh8 {[%emt 0:04:47]} 22. Rxc8 {[%emt 0:20:49]} Rxc8 {[%emt 0:00:02]} 23. Rd1 {[%emt 0:00:26] Black must now prevent Ne3.} Rc5 {[%emt 0:05:33]} 24. Qb3 {[%emt 0:04:04][%cal Od5b6]} h6 {[%emt 0:02:02]} 25. Nf4 {[%emt 0:04:17]} Qe7 {[%emt 0:00:40]} 26. h4 {[%emt 0:03:59][%cal Bh2h4,Bh4h5][%mdl 32]} Kg8 {[%emt 0:03:34]} 27. h5 {[%emt 0:02:49]} Kh8 {[%emt 0:01:03]} (27... Rc6 $14) 28. Qf3 $36 {[%emt 0:01:00][%mdl 2048] aiming for Qb7. White has strong initiative. White is more active.} Nf6 $2 {[%emt 0:05:30][%mdl 8192] [#] This costs Black the game.} (28... Nb8 $16 {is more resistant.}) 29. Qa8+ $1 $18 {[%emt 0:00:26]} Kh7 {[%emt 0:00:13] [#]} 30. Rd8 $1 {[%emt 0:01:29][%csl Ga8][%cal Rd8h8]} g5 {[%emt 0:00:35]} (30... Rc1+ $2 31. Kh2 (31. Kg2 Qe4+ 32. Qxe4+ Nxe4 $14) 31... g6 32. hxg6+ fxg6 33. Rb8) 31. hxg6+ $1 {[%emt 0:01:27]} fxg6 $2 {[%emt 0:00:02]} (31... Kg7 32. gxf7 Kxf7) 32. Rh8+ {[%emt 0:00:46]} Kg7 {[%emt 0:00:09]} 33. Rb8 {[%emt 0:00:09] Threatens to win with Rb7.} Rc1+ {[%emt 0:00:17]} 34. Kg2 {[%emt 0:00:29]} (34. Kh2 $142 {Rb7 is the strong threat.} Rd1 35. Rb7) 34... Qe4+ {[%emt 0:02:30]} 35. Qxe4 {[%emt 0:00:08]} Nxe4 {[%emt 0:00:01][%mdl 4096] Endgame KRN-KRN} 36. Rb7+ {[%emt 0:00:24]} Kg8 {[%emt 0:00:41]} 37. Nxg6 {[%emt 0:01:46]} Rc4 {[%emt 0:00:27]} (37... Nc3 $142 38. Rxb6 Nxe2) 38. Rxb6 {[%emt 0:01:09]} Rxa4 {[%emt 0:00:06]} 39. Nf4 {[%emt 0:00:39]} Ra1 {[%emt 0:01:10]} 40. Rxh6 {[%emt 0:00:41]} a4 {[%emt 0:00:08]} 41. Ra6 {[%emt 0:30:21]} a3 {[%emt 0:31:08]} 42. Nd5 {[%emt 0:02:14] Inhibits Nc3.} Ra2 $2 {[%emt 0:00:00]} (42... Rd1 43. Nb4 Rb1) 43. Nf6+ {[%emt 0:00:00] White is clearly winning.} Nxf6 {[%emt 0:00:00]} 44. Rxf6 {[%emt 0:00:00]} Rxe2 {[%emt 0:00:00] KR-KR} 45. Ra6 {[%emt 0:00:00]} a2 {[%emt 0:00:00]} 46. Ra7 {[%emt 0:00:00]} Kf8 {[%emt 0:00:00]} 47. g4 {[%emt 0:00:00]} Rb2 {[%emt 0:00:00]} 48. Kg3 {[%emt 0:00:00]} Kg8 {[%emt 0:00:00]} 49. f4 {[%emt 0:00:00] Weighted Error Value: White=0.21 (precise) /Black=0.26 (precise)} 1-0

[Event "Summer Prague Open-A 2022"]
[Site "Prague"]
[Date "2022.08.07"]
[Round "3.20"]
[White "Weishaeutel, Moritz"]
[Black "Lahlum, Hans Olav"]
[Result "1-0"]
[ECO "C07"]
[WhiteElo "2400"]
[BlackElo "2109"]
[Annotator "TA"]
[PlyCount "131"]
[EventDate "2022.08.05"]
[EventType "swiss"]
[EventCountry "CZE"]
[SourceTitle "playchess.com"]
[Source "ChessBase"]
[SourceQuality "1"]
[TimeControl "40/5400+30:1800+30"]

{[%evp 22,131,29,3,30,33,29,33,19,39,63,40,70,-12,-4,-10,-10,-3,-5,-19,0,0,0,-57,0,0,16,38,33,25,40,42,39,39,40,34,38,40,39,15,40,10,20,20,22,21,41,36,45,50,60,56,60,53,55,53,53,53,72,53,55,52,87,87,87,87,87,87,87,87,116,114,121,102,155,135,136,139,215,215,214,213,206,206,201,201,193,192,170,146,232,231,288,285,285,285,281,279,293,306,350,347,574,497,29977,29977,29977,29978,29976,29978,29976,29977]} 1. e4 {[%emt 0:00:02]} e6 {[%emt 0:00:03]} 2. d4 {[%emt 0:00:05]} d5 {[%emt 0:00:05]} 3. Nd2 {[%emt 0:00:04]} c5 {[%emt 0:00:05]} 4. exd5 {[%emt 0:00:06]} Qxd5 {[%emt 0:00:04]} 5. Ngf3 {[%emt 0:00:07]} cxd4 {[%emt 0:00:04]} 6. Bc4 {[%emt 0:00:06]} Qd6 {[%emt 0:00:04]} 7. O-O {[%emt 0:00:08]} Nf6 {[%emt 0:00:02]} 8. Nb3 {[%emt 0:00:06]} Nc6 {[%emt 0:00:03]} 9. Nbxd4 {[%emt 0:00:08]} Nxd4 {[%emt 0:00:05]} 10. Nxd4 {[%emt 0:00:04]} a6 {[%emt 0:00:14]} 11. Re1 {[%emt 0:00:10]} Qc7 {[%emt 0:00:18]} 12. Qe2 {[%emt 0:00:06] is the legacy move (12.Bf1).} Bd6 {[%emt 0:03:32] C07: French Tarrasch: 3...c5, 4 Ngf3 and 4 exd5 Qxd5.} 13. Bg5 {[%emt 0:00:20][%cal Rc4e6] aiming for Bxe6!} O-O {[%emt 0:02:14]} 14. Bxf6 {[%emt 0:00:06]} gxf6 {[%emt 0:00:08] White is slightly better.} (14... Bxh2+ $2 15. Kh1 gxf6 16. g3 $18) 15. Bd3 {[%emt 0:00:06][%cal Od3h7] Threatens to win with Bxh7+!} f5 {[%emt 0:12:00]} 16. Qh5 {[%emt 0:00:08]} Be5 {[%emt 0:04:40]} 17. Nf3 {[%emt 0:08:06] [#] White is more active.} (17. c3 $1 $14) 17... Bg7 $146 {[%emt 0:02:09]} ({Predecessor:} 17... Bxb2 18. Rab1 Bg7 19. Rb4 b5 20. Rg4 Qc3 21. Kf1 Qf6 22. Ne5 Kh8 23. Rh4 h6 24. g4 Kg8 25. f4 fxg4 26. Rxg4 Rd8 27. Ke2 {1-0 (27) Havlik,J (2141)-Maly,M (2076) Kouty nad Desnou 2012}) 18. g4 {[%emt 0:03:42][%cal Rg4f5]} Qf4 {[%emt 0:02:56]} 19. gxf5 {[%emt 0:00:11]} exf5 {[%emt 0:00:42]} 20. h3 {[%emt 0:01:13] Against Qg4+} h6 {[%emt 0:13:33]} 21. c3 {[%emt 0:15:30]} Be6 {[%emt 0:06:39]} 22. Nh4 {[%emt 0:12:42]} (22. Bc2 $11) 22... Rad8 {[%emt 0:02:18]} (22... Rfd8 $1 $15 23. Rad1 Qg5+ 24. Qxg5 hxg5) 23. Re3 $11 {[%emt 0:00:16]} Qg5+ {[%emt 0:03:34]} 24. Qxg5 {[%emt 0:00:08]} hxg5 {[%emt 0:00:03]} 25. Nxf5 {[%emt 0:00:40]} Bxf5 {[%emt 0:03:49]} 26. Bxf5 {[%emt 0:00:06]} Rd2 {[%emt 0:00:07]} 27. Rb1 {[%emt 0:00:39]} Rfd8 {[%emt 0:00:39]} 28. Re7 {[%emt 0:08:04]} b5 {[%emt 0:00:30]} 29. Bg4 {[%emt 0:03:10]} Bf8 {[%emt 0:12:57]} 30. Rc7 {[%emt 0:02:40]} a5 {[%emt 0:03:39]} 31. Rb7 {[%emt 0:05:41]} b4 {[%emt 0:05:01]} 32. cxb4 {[%emt 0:01:40]} axb4 {[%emt 0:00:09]} 33. Rc1 {[%emt 0:13:43] Inhibits Bc5. Black must now prevent Rcc7.} Bd6 {[%emt 0:02:08] Against Rcc7} 34. Bd1 {[%emt 0:00:59]} Bf4 {[%emt 0:10:34]} 35. Bb3 {[%emt 0:00:27]} R2d7 {[%emt 0:02:37]} 36. Rxd7 {[%emt 0:03:14]} Rxd7 $14 {[%emt 0:00:04][%mdl 4096] Endgame KRB-KRB} 37. Rc4 {[%emt 0:00:05]} Bd6 {[%emt 0:01:57]} 38. Rg4 {[%emt 0:05:04]} Be7 {[%emt 0:04:02]} 39. h4 {[%emt 0:00:27]} Rd2 {[%emt 0:00:47]} 40. hxg5 {[%emt 0:00:34] g6 is the strong threat.} Kg7 {[%emt 0:01:02]} 41. Rf4 {[%emt 0:34:32]} Bxg5 {[%emt 0:30:41]} 42. Rxb4 {[%emt 0:00:38]} Rxb2 {[%emt 0:02:48]} 43. Rb7 {[%emt 0:00:38]} Bf6 {[%emt 0:02:07]} 44. Rxf7+ {[%emt 0:01:10]} Kg6 {[%emt 0:00:04]} 45. Rf8 {[%emt 0:00:32]} Kf5 {[%emt 0:00:49]} 46. Kg2 {[%emt 0:00:57]} Ke5 {[%emt 0:00:00]} 47. Kg3 {[%emt 0:00:00]} Be7 {[%emt 0:00:00]} (47... Kf5 $142 48. f3 Rd2) 48. Rf7 {[%emt 0:00:00]} Bd6 {[%emt 0:00:00] [#]} 49. Kg4 $1 {[%emt 0:00:00]} Bc5 {[%emt 0:00:00]} (49... Rd2 $16 50. Rf5+ Kd4) 50. Rf5+ $18 {[%emt 0:00:00]} Kd6 {[%emt 0:00:00]} 51. Rd5+ {[%emt 0:00:00]} Kc6 {[%emt 0:00:00]} 52. f4 {[%emt 0:00:00]} Rg2+ {[%emt 0:00:00]} 53. Kf5 {[%emt 0:00:00]} Bd6 {[%emt 0:00:00]} 54. Rd3 {[%emt 0:00:00] White threatens Bd5+ and mate.} Rf2 {[%emt 0:00:00]} 55. Bd5+ {[%emt 0:00:00]} Kc5 {[%emt 0:00:00] [#]} (55... Kd7 $16) 56. Rf3 $1 {[%emt 0:00:00]} Rd2 {[%emt 0:00:00] [#]} (56... Re2 57. Be6) 57. Bb3 {[%emt 0:00:00]} Re2 {[%emt 0:00:00]} 58. Kg6 {[%emt 0:00:00]} Rg2+ {[%emt 0:00:00]} 59. Kf7 {[%emt 0:00:00]} Kd4 {[%emt 0:00:00]} 60. f5 {[%emt 0:00:00][%cal Bf4f5,Bf5f6,Bf6f7][%mdl 32]} Ke4 {[%emt 0:00:00]} 61. Rf1 {[%emt 0:00:00] Hoping for Ke6.} Bf4 $2 {[%emt 0:00:00]} (61... Ke5 62. f6 Rh2) 62. f6 {[%emt 0:00:00][%cal Of1f4] Intending Rxf4+! and mate.} Kf5 {[%emt 0:00:00] [#]} (62... Bd2 $18 63. Ke6 Kd4) 63. Rxf4+ $1 {[%emt 0:00:00] White mates.} Kxf4 {[%emt 0:00:00]} 64. Ke7 {[%emt 0:00:00]} Ke5 {[%emt 0:00:00]} 65. f7 {[%emt 0:00:00]} Rg7 {[%emt 0:00:00]} 66. Ke8 {[%emt 0:00:00] Weighted Error Value: White=0.08 (flawless) /Black=0.33} 1-0

[Event "Summer Prague Open-A 2022"]
[Site "Prague"]
[Date "2022.08.07"]
[Round "3.21"]
[White "Neuman, Petr"]
[Black "Jordanov, Mihail"]
[Result "1-0"]
[ECO "D10"]
[WhiteElo "2378"]
[BlackElo "2158"]
[Annotator "RC"]
[PlyCount "101"]
[EventDate "2022.08.05"]
[EventType "swiss"]
[EventCountry "CZE"]
[SourceTitle "playchess.com"]
[Source "ChessBase"]
[SourceQuality "1"]
[TimeControl "40/5400+30:1800+30"]

1. d4 {[%emt 0:00:05]} d5 {[%emt 0:00:11]} 2. c4 {[%emt 0:00:07]} c6 {[%emt 0:00:04]} 3. cxd5 {[%emt 0:00:53]} cxd5 {[%emt 0:00:08]} 4. Bf4 {[%emt 0:00:06]} Nc6 {[%emt 0:01:00]} 5. e3 {[%emt 0:00:08]} Nf6 {[%emt 0:00:41]} 6. Nc3 {[%emt 0:00:05]} a6 {[%emt 0:00:09]} 7. Be2 {[%emt 0:00:39]} Bf5 {[%emt 0:01:28]} 8. g4 {[%emt 0:00:14]} Be4 {[%emt 0:00:42]} 9. f3 {[%emt 0:00:10]} Bg6 {[%emt 0:00:13]} 10. h4 {[%emt 0:00:08]} h6 {[%emt 0:02:34]} 11. Nh3 {[%emt 0:01:57]} e6 {[%emt 0:00:26]} 12. Kf2 {[%emt 0:06:05]} Bd6 {[%emt 0:06:07]} 13. Qd2 {[%emt 0:18:30]} Qd7 {[%emt 0:20:52]} 14. Rac1 {[%emt 0:03:31]} h5 {[%emt 0:10:20]} 15. g5 {[%emt 0:00:38]} Ng8 {[%emt 0:00:07]} 16. Na4 {[%emt 0:03:47]} Rd8 {[%emt 0:09:07]} 17. Bxd6 {[%emt 0:04:54]} Qxd6 {[%emt 0:00:05]} 18. Nc5 {[%emt 0:00:11]} Rb8 {[%emt 0:08:39]} 19. Nf4 {[%emt 0:07:01]} Bf5 {[%emt 0:06:01]} 20. b4 {[%emt 0:07:25]} Nge7 {[%emt 0:01:30]} 21. a3 {[%emt 0:01:56]} Ng6 {[%emt 0:05:43]} 22. Nxg6 {[%emt 0:07:59]} Bxg6 {[%emt 0:00:17]} 23. Nd3 {[%emt 0:02:19]} Bxd3 {[%emt 0:03:22]} 24. Bxd3 {[%emt 0:00:07]} g6 {[%emt 0:04:41]} 25. f4 {[%emt 0:02:30]} O-O {[%emt 0:01:51]} 26. Rc5 {[%emt 0:00:14]} Rfc8 {[%emt 0:05:24]} 27. Rhc1 {[%emt 0:00:43]} Ne7 {[%emt 0:02:01]} 28. R1c3 {[%emt 0:01:46]} Rc6 {[%emt 0:02:00]} 29. Qc2 {[%emt 0:03:07]} Kg7 {[%emt 0:02:58]} 30. a4 {[%emt 0:00:30]} Rbc8 {[%emt 0:01:41]} 31. Ke2 {[%emt 0:02:53]} Qd8 {[%emt 0:01:12]} 32. Qb2 {[%emt 0:05:39]} Kg8 {[%emt 0:01:08]} 33. Rc2 {[%emt 0:01:26]} Qd6 {[%emt 0:01:04]} 34. a5 {[%emt 0:01:27]} Qd8 {[%emt 0:01:07]} 35. Qb3 {[%emt 0:01:56]} b5 {[%emt 0:01:32]} 36. axb6 {[%emt 0:02:18]} Qxb6 {[%emt 0:00:44]} 37. Qa4 {[%emt 0:00:28]} Qb7 {[%emt 0:00:53]} 38. Bxa6 {[%emt 0:01:47]} Qxa6+ {[%emt 0:00:37]} 39. Qxa6 {[%emt 0:00:05]} Rxa6 {[%emt 0:00:03]} 40. Rxc8+ {[%emt 0:00:06]} Nxc8 {[%emt 0:00:04]} 41. Rxc8+ {[%emt 0:30:04]} Kg7 {[%emt 0:30:15]} 42. Kd2 {[%emt 0:01:50]} Rb6 {[%emt 0:00:00]} 43. Kc3 {[%emt 0:00:00]} Rb7 {[%emt 0:00:00]} 44. Rc5 {[%emt 0:00:00]} f6 {[%emt 0:00:00]} 45. b5 {[%emt 0:00:00]} fxg5 {[%emt 0:00:00]} 46. fxg5 {[%emt 0:00:00]} Kf7 {[%emt 0:00:00]} 47. Kb4 {[%emt 0:00:00]} Ke7 {[%emt 0:00:00]} 48. Ka5 {[%emt 0:00:00]} Kd6 {[%emt 0:00:00]} 49. b6 {[%emt 0:00:00]} e5 {[%emt 0:00:00]} 50. Ka6 {[%emt 0:00:00]} exd4 {[%emt 0:00:00]} 51. exd4 {[%emt 0:00:00]} 1-0

[Event "Summer Prague Open-A 2022"]
[Site "Prague"]
[Date "2022.08.07"]
[Round "3.22"]
[White "Stoica, Savas Marin"]
[Black "Roubalik, Jakub"]
[Result "0-1"]
[ECO "A06"]
[WhiteElo "2092"]
[BlackElo "2380"]
[Annotator "RC"]
[PlyCount "118"]
[EventDate "2022.08.05"]
[EventType "swiss"]
[EventCountry "CZE"]
[SourceTitle "playchess.com"]
[Source "ChessBase"]
[SourceQuality "1"]
[TimeControl "40/5400+30:1800+30"]

1. Nf3 {[%emt 0:01:19]} d5 {[%emt 0:01:09]} 2. b3 {[%emt 0:00:07]} Nf6 {[%emt 0:05:31]} 3. Bb2 {[%emt 0:01:04]} e6 {[%emt 0:00:09]} 4. g3 {[%emt 0:00:09]} Be7 {[%emt 0:01:42]} 5. Bg2 {[%emt 0:00:11]} O-O {[%emt 0:00:49]} 6. O-O {[%emt 0:00:06]} a5 {[%emt 0:02:12]} 7. a3 {[%emt 0:00:06]} a4 {[%emt 0:00:54]} 8. b4 {[%emt 0:03:04]} c5 {[%emt 0:02:57]} 9. bxc5 {[%emt 0:00:06]} Bxc5 {[%emt 0:00:09]} 10. d4 {[%emt 0:09:29]} Bd6 {[%emt 0:02:57]} 11. c4 {[%emt 0:00:07]} Nc6 {[%emt 0:17:01]} 12. cxd5 {[%emt 0:00:19]} exd5 {[%emt 0:00:09]} 13. Nc3 {[%emt 0:05:58]} Qa5 {[%emt 0:01:46]} 14. Qd3 {[%emt 0:06:25]} Ne7 {[%emt 0:04:11]} 15. Rfc1 {[%emt 0:07:29]} Bf5 {[%emt 0:09:25]} 16. Qb5 {[%emt 0:09:43]} Rfc8 {[%emt 0:01:42]} 17. Qxa5 {[%emt 0:00:06]} Rxa5 {[%emt 0:00:02]} 18. Ne5 {[%emt 0:02:44]} h6 {[%emt 0:04:31]} 19. e3 {[%emt 0:05:39]} Nd7 {[%emt 0:16:23]} 20. Nxd7 {[%emt 0:05:16]} Bxd7 {[%emt 0:00:02]} 21. e4 {[%emt 0:00:19]} dxe4 {[%emt 0:10:24]} 22. Nxe4 {[%emt 0:00:08]} Bb8 {[%emt 0:00:16]} 23. Nc5 {[%emt 0:07:42]} Bc6 {[%emt 0:01:38]} 24. Bc3 {[%emt 0:00:06]} Ra7 {[%emt 0:02:07]} 25. Bh3 {[%emt 0:09:01]} Rd8 {[%emt 0:01:07]} 26. Nd3 {[%emt 0:01:04]} Nd5 {[%emt 0:05:01]} 27. Bb2 {[%emt 0:03:27]} Bd6 {[%emt 0:01:34]} 28. Ne5 {[%emt 0:00:30]} Be8 {[%emt 0:00:59]} 29. Bg2 {[%emt 0:00:21]} Ra5 {[%emt 0:00:38]} 30. Nc4 {[%emt 0:00:27]} Rb5 {[%emt 0:00:56]} 31. Bxd5 {[%emt 0:04:11]} Rxd5 {[%emt 0:00:08]} 32. Nxd6 {[%emt 0:00:04]} R5xd6 {[%emt 0:01:30]} 33. Re1 {[%emt 0:00:51]} Bc6 {[%emt 0:00:51]} 34. Bc3 {[%emt 0:00:55]} Rd5 {[%emt 0:01:34]} 35. Re5 {[%emt 0:02:19]} Kh7 {[%emt 0:01:07]} 36. Rae1 {[%emt 0:02:03]} f6 {[%emt 0:01:34]} 37. Rxd5 {[%emt 0:00:41]} Rxd5 {[%emt 0:00:02]} 38. f4 {[%emt 0:02:26]} h5 {[%emt 0:03:14]} 39. h3 {[%emt 0:04:41]} Bd7 {[%emt 0:00:51]} 40. h4 {[%emt 0:01:02]} Kg6 {[%emt 0:00:20]} 41. Kf2 {[%emt 0:30:02]} Kf5 {[%emt 0:30:47]} 42. Re7 {[%emt 0:03:04]} g6 {[%emt 0:00:00]} 43. Rf7 {[%emt 0:00:00]} Ke6 {[%emt 0:00:00]} 44. Rg7 {[%emt 0:00:00]} Bc6 {[%emt 0:00:00]} 45. Ke3 {[%emt 0:00:00]} Kf5 {[%emt 0:00:00]} 46. Bb4 {[%emt 0:00:00]} Rd8 {[%emt 0:00:00]} 47. Bc5 {[%emt 0:00:00]} Rc8 {[%emt 0:00:00]} 48. Bd6 {[%emt 0:00:00]} Bd5 {[%emt 0:00:00]} 49. Rc7 {[%emt 0:00:00]} Re8+ {[%emt 0:00:00]} 50. Re7 {[%emt 0:00:00]} Rd8 {[%emt 0:00:00]} 51. Bc5 {[%emt 0:00:00]} b6 {[%emt 0:00:00]} 52. Bb4 {[%emt 0:00:00]} Kg4 {[%emt 0:00:00]} 53. Rg7 {[%emt 0:00:00]} Re8+ {[%emt 0:00:00]} 54. Re7 {[%emt 0:00:00]} Rg8 {[%emt 0:00:00]} 55. Rd7 {[%emt 0:00:00]} Be6 {[%emt 0:00:52]} 56. Rd6 {[%emt 0:00:00]} Re8 {[%emt 0:00:08]} 57. Kf2 {[%emt 0:00:00]} Bc4 {[%emt 0:00:13]} 58. Rxf6 {[%emt 0:00:00]} Re2+ {[%emt 0:00:03]} 59. Kg1 {[%emt 0:00:00]} Kh3 {[%emt 0:02:02]} 0-1

[Event "Summer Prague Open-A 2022"]
[Site "Prague"]
[Date "2022.08.07"]
[Round "3.23"]
[White "Valkova, Angelika"]
[Black "Sarkar, Justin"]
[Result "0-1"]
[ECO "E23"]
[WhiteElo "2075"]
[BlackElo "2346"]
[Annotator "RC"]
[PlyCount "66"]
[EventDate "2022.08.05"]
[EventType "swiss"]
[EventCountry "CZE"]
[SourceTitle "playchess.com"]
[Source "ChessBase"]
[SourceQuality "1"]
[TimeControl "40/5400+30:1800+30"]

1. d4 Nf6 {[%emt 0:00:19]} 2. c4 {[%emt 0:00:18]} e6 {[%emt 0:01:42]} 3. Nc3 {[%emt 0:00:07]} Bb4 {[%emt 0:00:21]} 4. Qb3 {[%emt 0:00:06]} c5 {[%emt 0:00:45]} 5. dxc5 {[%emt 0:00:15]} Nc6 {[%emt 0:01:39]} 6. Nf3 {[%emt 0:00:55]} Ne4 {[%emt 0:02:49]} 7. Bd2 {[%emt 0:00:51]} Nxc5 {[%emt 0:01:38]} 8. Qc2 {[%emt 0:00:08]} O-O {[%emt 0:00:43]} 9. a3 {[%emt 0:05:20]} Bxc3 {[%emt 0:00:16]} 10. Bxc3 {[%emt 0:00:12]} a5 {[%emt 0:00:42]} 11. b3 {[%emt 0:03:10]} d6 {[%emt 0:01:33]} 12. g3 {[%emt 0:06:32]} e5 {[%emt 0:12:00]} 13. Bg2 {[%emt 0:02:48]} Be6 {[%emt 0:00:24]} 14. O-O {[%emt 0:01:07]} a4 {[%emt 0:01:49]} 15. b4 {[%emt 0:01:14]} Nb3 {[%emt 0:00:09]} 16. Rad1 {[%emt 0:00:04]} Qe7 {[%emt 0:00:30]} 17. c5 {[%emt 0:22:02]} dxc5 {[%emt 0:05:41]} 18. Nxe5 {[%emt 0:02:50]} Nxb4 {[%emt 0:16:05]} 19. axb4 {[%emt 0:04:30]} cxb4 {[%emt 0:00:06]} 20. Ba1 {[%emt 0:16:08]} a3 {[%emt 0:01:33]} 21. Nd3 {[%emt 0:02:48]} Rfc8 {[%emt 0:04:25]} 22. Qb1 {[%emt 0:00:49]} Nxa1 {[%emt 0:08:41]} 23. Qxa1 {[%emt 0:02:34]} b3 {[%emt 0:00:08]} 24. Rc1 {[%emt 0:03:53]} h6 {[%emt 0:11:49]} 25. Qe5 {[%emt 0:05:40]} Rxc1 {[%emt 0:06:02]} 26. Rxc1 {[%emt 0:00:10]} Qf6 {[%emt 0:01:16]} 27. Qxf6 {[%emt 0:09:12]} gxf6 {[%emt 0:00:04]} 28. Rb1 {[%emt 0:00:11]} b2 {[%emt 0:00:45]} 29. Nxb2 {[%emt 0:00:18]} axb2 {[%emt 0:02:52]} 30. Be4 {[%emt 0:01:09]} Ra1 {[%emt 0:00:07]} 31. Kg2 {[%emt 0:00:14]} Bd5 {[%emt 0:00:07]} 32. Rxb2 {[%emt 0:01:14]} Bxe4+ {[%emt 0:00:07]} 33. f3 {[%emt 0:00:07]} Bd5 {[%emt 0:00:47]} 0-1

[Event "Summer Prague Open-A 2022"]
[Site "Prague"]
[Date "2022.08.07"]
[Round "3.24"]
[White "Sorm, Daniel"]
[Black "Toure, Ananth"]
[Result "1-0"]
[ECO "D05"]
[WhiteElo "2308"]
[BlackElo "2055"]
[Annotator "RC"]
[PlyCount "61"]
[EventDate "2022.08.05"]
[EventType "swiss"]
[EventCountry "CZE"]
[SourceTitle "playchess.com"]
[Source "ChessBase"]
[SourceQuality "1"]
[TimeControl "40/5400+30:1800+30"]

1. d4 {[%emt 0:00:01]} d5 {[%emt 0:06:55]} 2. e3 {[%emt 0:01:34]} Nf6 {[%emt 0:01:33]} 3. Bd3 {[%emt 0:01:07]} c6 {[%emt 0:01:55]} 4. Nd2 {[%emt 0:01:32]} Nbd7 {[%emt 0:04:01]} 5. f4 {[%emt 0:00:55]} g6 {[%emt 0:00:38]} 6. Ngf3 {[%emt 0:07:24]} Bg7 {[%emt 0:00:20]} 7. O-O {[%emt 0:00:07]} O-O {[%emt 0:03:57]} 8. Qe1 {[%emt 0:01:04]} Nb6 {[%emt 0:05:52]} 9. Qh4 {[%emt 0:09:41]} Bf5 {[%emt 0:01:29]} 10. Bxf5 {[%emt 0:01:07]} gxf5 {[%emt 0:00:19]} 11. Ne5 {[%emt 0:03:06]} e6 {[%emt 0:03:04]} 12. Qh3 {[%emt 0:01:59]} Nc8 {[%emt 0:09:56]} 13. Ndf3 {[%emt 0:04:32]} Ne4 {[%emt 0:09:44]} 14. Bd2 {[%emt 0:01:23]} c5 {[%emt 0:06:00]} 15. Be1 {[%emt 0:05:18]} c4 {[%emt 0:08:48]} 16. Nd2 {[%emt 0:08:17]} Nxd2 {[%emt 0:03:28]} 17. Bxd2 {[%emt 0:00:06]} f6 {[%emt 0:00:59]} 18. Nf3 {[%emt 0:00:18]} a5 {[%emt 0:00:10]} 19. Kh1 {[%emt 0:02:36]} Qe8 {[%emt 0:12:23]} 20. Rg1 {[%emt 0:04:51]} Qg6 {[%emt 0:00:34]} 21. g4 {[%emt 0:00:21]} Nd6 {[%emt 0:00:55]} 22. Nh4 {[%emt 0:11:21]} Qh6 {[%emt 0:01:00]} 23. gxf5 {[%emt 0:00:37]} Nxf5 {[%emt 0:01:43]} 24. Rg4 {[%emt 0:00:23]} Rf7 {[%emt 0:02:58]} 25. Rag1 {[%emt 0:00:38]} b6 {[%emt 0:02:24]} 26. Be1 {[%emt 0:00:57]} Raa7 {[%emt 0:00:32]} 27. Qf3 {[%emt 0:01:05]} Nd6 {[%emt 0:01:56]} 28. f5 {[%emt 0:00:42]} exf5 {[%emt 0:01:38]} 29. R4g2 {[%emt 0:15:38]} Rad7 {[%emt 0:03:49]} 30. Qxd5 {[%emt 0:01:58]} Kh8 {[%emt 0:01:23]} 31. Qa8+ {[%emt 0:01:17]} 1-0